bitfinex/quotes_ETHUSD_20240714
["timestamp","ask_amount","ask_price","bid_price","bid_amount"]
[1720953666906,3.82279018,3210.9,3210.8,0.116518]
[1720953667112,3.02700042,3210.9,3210.8,0.16196153]
[1720953667709,2.70269545,3210.9,3210.8,0.16196153]
[1720953668133,1.40489018,3210.9,3210.8,0.16196153]
[1720953668930,1.40478796,3210.9,3210.8,0.16196153]
[1720953669948,2.70284045,3210.9,3210.8,0.16196153]
[1720953670146,1.40478796,3210.9,3210.8,0.16196153]
[1720953671949,3.02718656,3210.9,3210.8,0.16196153]
[1720953672241,3.02788885,3210.9,3210.8,0.16196153]
[1720953672421,3.33067774,3210.9,3210.8,0.16196153]
[1720953672625,4.05136416,3210.9,3210.8,0.16196153]
[1720953673254,6.07696994,3210.9,3210.8,0.16196153]
[1720953675066,4.12923365,3210.9,3210.8,0.16196153]
[1720953675255,2.97218996,3210.9,3210.8,0.16196153]
[1720953675433,4.051569,3210.9,3210.8,0.16196153]
[1720953675964,4.05155108,3210.9,3210.8,0.16196153]
[1720953678467,2.97218996,3210.9,3210.8,0.16196153]
[1720953678639,4.05155355,3210.9,3210.8,0.16196153]
[1720953678845,4.05155355,3210.9,3210.8,0.116518]
[1720953681800,2.97218996,3210.9,3210.8,0.116518]
[1720953682085,4.05155332,3210.9,3210.8,0.116518]
[1720953684484,7.05155332,3210.9,3210.8,0.116518]
[1720953684693,9.32465048,3210.9,3210.8,0.116518]
[1720953685107,8.24528712,3210.9,3210.8,0.116518]
[1720953685394,9.32468307,3210.9,3210.8,0.116518]
[1720953685591,9.32333633,3210.9,3210.8,0.116518]
[1720953686482,7.05158591,3210.9,3210.8,0.116518]
[1720953688303,7.05163227,3210.9,3210.8,0.116518]
[1720953688873,9.32244128,3210.9,3210.8,0.116518]
[1720953689076,5.97218996,3210.9,3210.8,0.116518]
[1720953689277,8.24322167,3210.9,3210.8,0.116518]
[1720953689609,9.3226639,3210.9,3210.8,0.116518]
[1720953692912,7.05163219,3210.9,3210.8,0.116518]
[1720953693483,5.97218996,3210.9,3210.8,0.116518]
[1720953693699,6.05007499,3210.9,3210.8,0.116518]
[1720953694285,5.97218996,3210.9,3210.8,0.116518]
[1720953695790,5.97218996,3210.9,3210.8,0.16197598]
[1720953695987,5.66940107,3210.9,3210.8,0.16197598]
[1720953697804,0.32560107,3210.9,3210.8,0.16197598]
[1720953698606,0.32560107,3210.9,3210.8,0.116518]
[1720953702234,0.32560107,3210.9,3210.8,0.16197598]
[1720953703530,1.94948286,3210.9,3210.8,0.16197598]
[1720953704527,0.32560107,3210.9,3210.8,0.16197598]
[1720953705208,2.3521252,3210.9,3210.8,0.16197598]
[1720953705406,2.2742578,3210.9,3210.8,0.16197598]
[1720953705595,0.32560107,3210.9,3210.8,0.16197598]
[1720953705795,2.27428103,3210.9,3210.8,0.16197598]
[1720953705994,2.2742825,3210.9,3210.8,0.16197598]
[1720953708457,3.35352962,3210.9,3210.8,0.16197598]
[1720953708601,3.35373976,3210.9,3210.8,0.116518]
[1720953709047,2.27447385,3210.9,3210.8,0.16197598]
[1720953709203,1.40484737,3210.9,3210.8,0.16197598]
[1720953709936,0.32560107,3210.9,3210.8,0.16197598]
[1720953710637,3.02862955,3210.9,3210.8,0.16197598]
[1720953711434,3.02862955,3210.9,3210.8,2.31677598]
[1720953711435,2.70387014,3210.9,3210.8,2.31677598]
[1720953711602,1.07916265,3210.9,3210.8,2.31677598]
[1720953711806,0.97436023,3210.9,3210.8,2.79762658]
[1720953712516,0.97436023,3211.0,3210.8,2.79762658]
[1720953713335,0.97436023,3211.1,3210.8,2.79762658]
[1720953714135,0.97436023,3211.0,3210.8,2.79762658]
[1720953714836,0.97436023,3210.9,3210.8,2.79762658]
[1720953715848,0.97436023,3211.0,3210.8,2.79762658]
[1720953716056,0.97436023,3211.0,3210.9,0.52892866]
[1720953716432,1.29910642,3211.2,3210.9,0.52892866]
[1720953716433,0.97436023,3211.1,3210.9,0.52892866]
[1720953717157,0.97436023,3211.1,3211.0,2.49143]
[1720953717361,1.62298374,3211.4,3211.1,2.1548]
[1720953717362,0.97436023,3211.4,3211.1,2.1548]
[1720953717549,1.30005271,3211.5,3211.2,0.464623]
[1720953717940,0.97436023,3211.5,3211.2,0.464623]
[1720953718338,0.97436023,3211.7,3211.4,2.49107]
[1720953718541,0.97436023,3211.9,3211.5,2.1548]
[1720953718941,1.30000046,3212.0,3211.5,2.1548]
[1720953719231,1.30000046,3212.0,3211.6,0.464587]
[1720953719542,0.32564023,3212.0,3211.6,0.464587]
[1720953720366,1.30000046,3212.0,3211.6,0.464587]
[1720953721153,1.30000046,3212.0,3211.7,2.49089]
[1720953721366,0.32564023,3212.0,3211.7,2.49089]
[1720953721534,0.32564023,3212.0,3211.8,2.7863377]
[1720953721734,0.97270787,3212.3,3211.9,2.1548]
[1720953722040,0.97270787,3212.4,3212.0,2.49065]
[1720953722444,1.2983518,3212.5,3212.0,2.49065]
[1720953723463,0.32564393,3212.5,3212.0,2.49065]
[1720953723670,0.32564393,3212.5,3212.0,3.23381977]
[1720953724366,0.32564393,3212.5,3212.0,2.49065]
[1720953724542,1.2983518,3212.5,3211.9,4.64553]
[1720953724753,0.32564393,3212.5,3211.9,4.64553]
[1720953725474,2.75904393,3212.5,3211.9,4.64553]
[1720953725767,2.75904393,3212.5,3211.9,2.49073]
[1720953726153,2.83687057,3212.5,3211.9,2.49073]
[1720953726553,2.75904393,3212.5,3211.9,2.49073]
[1720953728257,2.75904393,3212.5,3211.9,5.185369]
[1720953730564,0.32564393,3212.5,3211.9,5.185369]
[1720953730965,0.32564393,3212.5,3212.0,2.49065]
[1720953731876,0.32564393,3212.5,3212.1,2.1548]
[1720953732067,0.32564393,3212.5,3212.1,4.64537]
[1720953732269,3.28140787,3213.1,3212.2,2.955027]
[1720953732447,1.07857487,3213.0,3212.2,2.955027]
[1720953732781,3.60700564,3213.1,3212.2,2.955027]
[1720953732782,2.63429777,3213.1,3212.2,2.955027]
[1720953734754,2.63429777,3213.1,3212.3,2.49042]
[1720953738383,2.63429777,3213.1,3212.5,2.49025]
[1720953738693,2.63429777,3213.1,3212.6,0.249025]
[1720953743496,2.2571,3213.4,3212.6,2.403825]
[1720953743667,1.07844034,3213.3,3212.6,2.403825]
[1720953743892,1.07844034,3213.2,3212.6,2.403825]
[1720953744256,1.07843579,3213.1,3212.6,2.403825]
[1720953744456,2.2571,3213.4,3212.7,0.7384285]
[1720953744776,1.0784352,3213.3,3212.7,3.2285385]
[1720953744976,3.0,3213.9,3212.7,3.2285385]
[1720953744977,2.2571,3213.6,3212.8,2.49003]
[1720953745215,1.07833236,3213.5,3212.8,2.49003]
[1720953745503,2.2571,3213.6,3212.8,2.49003]
[1720953745797,1.04600635,3214.2,3213.2,2.1548]
[1720953745798,1.07831095,3213.5,3213.2,2.1548]
[1720953745994,2.2571,3214.0,3213.3,2.48963]
[1720953746213,1.07818041,3213.9,3213.4,2.48956]
[1720953746494,1.07818041,3213.8,3213.4,2.48956]
[1720953746696,1.07818041,3213.9,3213.4,2.48956]
[1720953746901,1.07818532,3213.8,3213.5,2.48948]
[1720953747114,2.2571,3214.0,3213.5,2.48948]
[1720953747326,2.2571,3214.0,3213.5,2.987391]
[1720953747626,1.078183,3213.9,3213.5,2.987391]
[1720953747828,2.2571,3214.0,3213.5,2.987391]
[1720953747829,1.07818243,3213.8,3213.5,2.987391]
[1720953747993,2.2571,3214.0,3213.5,2.987391]
[1720953748197,1.07817674,3213.9,3213.5,2.987391]
[1720953748397,2.2571,3214.0,3213.5,2.987391]
[1720953748398,1.07817674,3213.8,3213.5,2.987391]
[1720953748697,2.2571,3214.0,3213.5,2.987391]
[1720953748918,1.07818632,3213.9,3213.5,2.48948]
[1720953749076,1.07818632,3213.8,3213.5,2.48948]
[1720953749273,2.2571,3214.0,3213.5,2.48948]
[1720953749477,1.07819084,3213.9,3213.5,2.48948]
[1720953749718,1.07819084,3213.8,3213.5,2.48948]
[1720953749877,2.2571,3214.0,3213.5,2.48948]
[1720953750222,1.07819058,3213.9,3213.5,2.48948]
[1720953750582,2.2571,3214.0,3213.5,2.48948]
[1720953750880,1.07819048,3213.9,3213.5,2.48948]
[1720953751080,2.2571,3214.0,3213.5,2.48948]
[1720953751281,1.07819044,3213.9,3213.5,2.48948]
[1720953751583,2.2571,3214.0,3213.6,0.248948]
[1720953751914,1.07818701,3213.9,3213.5,2.48948]
[1720953752114,2.2571,3214.0,3213.5,2.48948]
[1720953752284,1.07819005,3213.9,3213.5,2.48948]
[1720953752482,2.2571,3214.0,3213.5,2.48948]
[1720953752684,1.07818992,3213.9,3213.5,2.48948]
[1720953752917,2.2571,3214.0,3213.5,2.48948]
[1720953753085,1.07819005,3213.9,3213.5,2.48948]
[1720953753281,0.07779669,3213.9,3213.5,2.48948]
[1720953753508,2.4984,3213.7,3213.0,7.42]
[1720953753712,2.4984,3213.7,3213.0,9.90988]
[1720953753713,1.07826134,3213.6,3213.0,9.90988]
[1720953753920,2.4984,3213.7,3213.0,9.90988]
[1720953754116,1.07832598,3213.6,3213.0,9.90988]
[1720953754296,2.4984,3213.7,3213.0,9.90988]
[1720953754491,1.07832305,3213.6,3213.1,1.04817368]
[1720953754693,2.57620663,3213.7,3213.1,1.04817368]
[1720953754912,1.07832966,3213.6,3213.0,9.90988]
[1720953755129,2.57620663,3213.7,3213.0,9.90988]
[1720953755436,1.07833085,3213.6,3213.0,9.90988]
[1720953755649,2.57620663,3213.7,3213.0,9.90988]
[1720953755821,1.07832686,3213.6,3213.0,2.48988]
[1720953756036,2.4984,3213.7,3213.0,2.48988]
[1720953756220,1.07833495,3213.6,3213.0,2.48988]
[1720953756535,2.57620661,3213.7,3213.0,3.04505569]
[1720953756718,1.07832939,3213.6,3213.0,3.04505569]
[1720953756913,2.57620661,3213.7,3213.0,3.04505569]
[1720953757114,1.07833099,3213.6,3213.0,3.04505569]
[1720953757313,1.07833325,3213.5,3213.0,3.04505569]
[1720953757503,2.4984,3213.7,3213.0,3.04505569]
[1720953757702,2.57620659,3213.7,3213.0,3.04505569]
[1720953757930,1.07833319,3213.6,3213.0,0.55517569]
[1720953758127,1.15614012,3213.5,3212.9,3.06179685]
[1720953758408,1.07833836,3213.4,3212.9,0.57185685]
[1720953758712,2.4984,3213.7,3212.9,3.06179685]
[1720953759008,1.07832892,3213.6,3212.9,3.06179685]
[1720953759219,1.07832892,3213.5,3212.9,3.06179685]
[1720953759428,1.07832892,3213.4,3213.0,0.55518169]
[1720953759623,2.4984,3213.7,3213.0,0.55518169]
[1720953759816,1.07832742,3213.6,3213.0,0.55518169]
[1720953760013,1.07832742,3213.5,3213.0,0.55518169]
[1720953760213,1.0783295,3213.4,3213.0,0.55518169]
[1720953760456,2.4984,3213.7,3213.1,0.36169785]
[1720953760606,1.07832692,3213.6,3212.9,3.06179685]
[1720953760805,2.4984,3213.7,3212.9,3.06179685]
[1720953760806,1.07832692,3213.5,3212.9,3.06179685]
[1720953761027,1.07832692,3213.6,3212.9,3.06179685]
[1720953761528,1.07832692,3213.6,3212.9,0.57185685]
[1720953761723,2.4984,3213.4,3212.9,0.57185685]
[1720953761927,1.07832692,3213.3,3212.9,0.57185685]
[1720953762943,1.07832692,3213.3,3212.6,12.06496]
[1720953762944,0.07781095,3213.2,3212.6,9.91016]
[1720953763107,1.07832692,3213.1,3212.6,9.91016]
[1720953763440,3.54503205,3213.4,3212.6,9.91016]
[1720953763644,1.07844889,3213.3,3212.6,9.91012]
[1720953763818,1.07846018,3213.2,3212.7,0.991012]
[1720953764017,1.07846018,3213.1,3212.7,3.481122]
[1720953764318,3.46966055,3213.4,3212.7,3.481122]
[1720953764514,1.07844539,3213.3,3212.7,0.991012]
[1720953764842,1.07844539,3213.2,3212.7,0.991012]
[1720953765044,3.46966055,3213.4,3212.7,0.991012]
[1720953765045,1.07844539,3213.1,3212.7,0.991012]
[1720953765251,1.07844539,3213.3,3212.7,0.991012]
[1720953765453,1.07844539,3213.2,3212.7,0.991012]
[1720953765740,3.28426055,3213.0,3212.4,19.81]
[1720953765945,3.28426055,3213.0,3212.3,2.49039]
[1720953765946,1.07844539,3212.9,3212.3,2.49039]
[1720953766121,2.04970594,3212.9,3212.4,2.49033]
[1720953766449,1.07844539,3212.8,3212.5,2.1548]
[1720953766612,1.07844539,3213.0,3212.5,2.1548]
[1720953766812,3.60801406,3213.3,3212.5,2.1548]
[1720953766813,2.04970594,3213.1,3212.6,0.464513]
[1720953767046,1.07846351,3213.0,3212.6,0.464513]
[1720953767209,1.07846351,3212.9,3212.6,0.464513]
[1720953767413,0.97126055,3213.1,3212.4,2.49033]
[1720953767631,0.97126055,3212.9,3212.4,2.49033]
[1720953767834,1.07850639,3212.8,3212.4,2.49033]
[1720953768953,0.32559942,3212.7,3212.4,2.49033]
[1720953769166,0.32559942,3212.7,3212.2,29.3848]
[1720953769167,1.15632525,3212.6,3212.2,27.23]
[1720953769464,2.04976694,3212.5,3212.2,27.23]
[1720953769618,1.07850639,3212.4,3212.2,27.23]
[1720953770150,2.4859,3212.4,3212.2,27.23]
[1720953770532,2.4859,3212.4,3212.0,2.49065]
[1720953770736,2.4859,3212.4,3212.1,2.530065]
[1720953771030,1.07866336,3212.3,3211.9,3.0]
[1720953771251,3.45716055,3212.4,3211.8,3.0]
[1720953771454,3.45716055,3212.4,3211.8,5.4908]
[1720953771769,3.45716055,3212.4,3211.7,4.64566]
[1720953772056,1.078659,3212.3,3211.8,2.49081]
[1720953772262,3.45716055,3212.4,3211.9,0.713647]
[1720953773120,1.07867096,3212.3,3211.9,0.713647]
[1720953773418,3.45716055,3212.4,3211.9,0.713647]
[1720953773844,2.04994803,3212.3,3211.9,0.713647]
[1720953774050,0.97126055,3212.3,3211.9,0.713647]
[1720953775176,0.97126055,3212.2,3211.9,0.713647]
[1720953775551,0.97126055,3212.3,3211.6,9.91091]
[1720953775752,0.97126055,3212.3,3211.7,3.0]
[1720953776048,0.97126055,3212.3,3211.7,5.49086]
[1720953776500,1.04909378,3212.3,3211.7,5.49086]
[1720953776659,0.97126055,3212.3,3211.7,3.0]
[1720953776867,0.07783566,3212.2,3211.8,1.042]
[1720953777346,0.97126055,3212.3,3211.8,1.042]
[1720953779157,0.07783558,3212.2,3211.6,7.42]
[1720953779393,3.45716055,3212.1,3211.6,7.42]
[1720953779957,3.45716055,3212.1,3211.6,7.4927437]
[1720953780378,2.4859,3212.1,3211.6,7.4927437]
[1720953780599,3.45735612,3212.1,3211.6,7.4927437]
[1720953782018,0.97145612,3211.9,3211.6,7.4927437]
[1720953782291,0.07784347,3211.8,3211.6,7.4927437]
[1720953782456,0.07784347,3211.8,3211.6,0.0727437]
[1720953782963,2.2697,3211.7,3211.6,0.0727437]
[1720953783307,1.07893937,3211.7,3211.6,0.0727437]
[1720953783500,3.34863937,3211.7,3211.6,0.0727437]
[1720953783671,3.82575434,3211.7,3211.6,0.0727437]
[1720953783869,5.12102917,3211.7,3211.6,0.0727437]
[1720953784096,5.44690842,3211.7,3211.6,0.0727437]
[1720953784398,5.12135037,3211.7,3211.6,0.0727437]
[1720953785471,4.042411,3211.7,3211.6,0.0727437]
[1720953785676,5.1214334,3211.7,3211.6,0.0727437]
[1720953786063,4.15171662,3211.7,3211.6,0.0727437]
[1720953787008,8.76769652,3211.7,3211.6,0.0727437]
[1720953787167,7.15171662,3211.7,3211.6,0.0727437]
[1720953787367,8.76537719,3211.7,3211.6,0.0727437]
[1720953788609,6.07269422,3211.7,3211.6,0.0727437]
[1720953788804,7.15188202,3211.7,3211.6,0.0727437]
[1720953789492,8.44160461,3211.7,3211.6,0.0727437]
[1720953789697,7.15188202,3211.7,3211.6,0.0727437]
[1720953790104,8.7647184,3211.7,3211.6,0.0727437]
[1720953790304,7.15188202,3211.7,3211.6,0.0727437]
[1720953790505,8.44118067,3211.7,3211.6,0.0727437]
[1720953791205,8.7647184,3211.7,3211.6,0.0727437]
[1720953791915,8.2355306,3211.7,3211.6,0.0727437]
[1720953792072,7.70197812,3211.7,3211.6,0.0727437]
[1720953792271,9.31272253,3211.7,3211.6,0.0727437]
[1720953792502,7.91090944,3211.7,3211.6,0.0727437]
[1720953792803,8.9901906,3211.7,3211.6,0.0727437]
[1720953794204,8.4401906,3211.7,3211.6,0.0727437]
[1720953794374,7.15197538,3211.7,3211.6,0.0727437]
[1720953794574,8.11782176,3211.7,3211.6,0.0727437]
[1720953794883,7.15197538,3211.7,3211.6,0.0727437]
[1720953795210,6.07269422,3211.7,3211.6,0.0727437]
[1720953795404,7.15196989,3211.7,3211.6,0.0727437]
[1720953795703,8.11769095,3211.7,3211.6,0.0727437]
[1720953795894,8.66769095,3211.7,3211.6,0.0727437]
[1720953796475,8.11769095,3211.7,3211.6,0.0727437]
[1720953796670,7.15196989,3211.7,3211.6,0.0727437]
[1720953797701,7.07410864,3211.7,3211.6,0.0727437]
[1720953797880,6.67485492,3211.7,3211.6,0.0727437]
[1720953798603,4.40498785,3211.7,3211.6,0.0727437]
[1720953798786,1.40498785,3211.7,3211.6,0.0727437]
[1720953798988,1.48284577,3211.7,3211.6,0.0727437]
[1720953800093,3.80264577,3211.7,3211.6,0.0727437]
[1720953800300,7.48291035,3211.7,3211.6,0.0727437]
[1720953801747,7.48300679,3211.7,3211.6,0.0727437]
[1720953802044,6.40380175,3211.7,3211.6,0.0727437]
[1720953802201,7.4830146,3211.7,3211.6,0.0727437]
[1720953804905,7.48298357,3211.7,3211.6,0.0727437]
[1720953806434,8.44870463,3211.7,3211.6,0.0727437]
[1720953806608,7.48298357,3211.7,3211.6,0.0727437]
[1720953807819,8.4496863,3211.7,3211.6,0.0727437]
[1720953808026,7.48298357,3211.7,3211.6,0.0727437]
[1720953809209,7.48298357,3211.7,3211.6,0.0227437]
[1720953809414,8.44974961,3211.7,3211.6,0.0227437]
[1720953810920,7.48298357,3211.7,3211.6,0.0227437]
[1720953811166,8.77119879,3211.7,3211.6,0.0227437]
[1720953811353,9.09418942,3211.7,3211.6,0.0227437]
[1720953811566,7.4830722,3211.7,3211.6,0.0227437]
[1720953811857,9.09633036,3211.7,3211.6,0.0227437]
[1720953812431,7.4830722,3211.7,3211.6,0.0227437]
[1720953813844,8.0330722,3211.7,3211.6,0.0227437]
[1720953814869,8.03302744,3211.7,3211.6,0.0227437]
[1720953815289,6.95380175,3211.7,3211.6,0.0227437]
[1720953815457,9.97061441,3211.7,3211.6,3.7e-06]
[1720953815653,9.97091058,3211.7,3211.6,3.7e-06]
[1720953815879,8.03309549,3211.7,3211.6,3.7e-06]
[1720953818197,8.03311558,3211.7,3211.6,3.7e-06]
[1720953818347,10.29555297,3211.7,3211.6,3.7e-06]
[1720953818546,8.03311558,3211.7,3211.6,3.7e-06]
[1720953819495,10.29555297,3211.7,3211.6,3.7e-06]
[1720953820249,8.03311558,3211.7,3211.6,3.7e-06]
[1720953821456,8.19585234,3211.7,3211.6,3.7e-06]
[1720953821855,10.87107613,3211.7,3211.6,3.7e-06]
[1720953822368,8.19585234,3211.7,3211.6,3.7e-06]
[1720953823052,10.87177219,3211.7,3211.6,3.7e-06]
[1720953823252,10.8717794,3211.7,3211.6,3.7e-06]
[1720953823493,8.19585234,3211.7,3211.6,3.7e-06]
[1720953824682,7.11649554,3211.7,3211.6,3.7e-06]
[1720953824886,8.19587293,3211.7,3211.6,3.7e-06]
[1720953825067,7.11649554,3211.7,3211.6,3.7e-06]
[1720953825392,2.428,3211.1,3210.6,7.0941017]
[1720953825596,2.428,3210.7,3210.2,7.0991017]
[1720953825767,2.26783904,3210.5,3210.2,7.0991017]
[1720953826084,1.07938069,3210.4,3210.2,7.0991017]
[1720953826271,4.07938069,3210.4,3210.2,0.005]
[1720953826476,1.07938069,3210.3,3210.2,0.005]
[1720953827304,1.71410266,3210.3,3210.2,0.005]
[1720953827506,4.07938069,3210.3,3210.2,0.005]
[1720953827797,3.0,3210.4,3210.2,0.005]
[1720953827999,1.07962882,3210.3,3210.2,0.005]
[1720953828505,1.07962882,3210.3,3210.1,19.765]
[1720953828653,1.07962882,3210.2,3210.1,19.765]
[1720953828852,5.26733963,3210.4,3210.1,19.765]
[1720953828853,1.07962882,3210.3,3210.1,19.765]
[1720953829080,1.71432567,3210.3,3210.1,19.765]
[1720953829282,1.07962882,3210.2,3210.1,19.765]
[1720953829506,4.07962882,3210.2,3210.1,19.765]
[1720953829708,1.07962882,3210.2,3210.1,19.765]
[1720953830162,1.07962882,3210.2,3210.0,0.005]
[1720953830363,2.02215045,3210.1,3210.0,0.005]
[1720953830700,6.10177927,3210.1,3210.0,0.005]
[1720953831061,4.07962882,3210.1,3210.0,0.005]
[1720953831371,1.07962882,3210.1,3210.0,0.005]
[1720953831572,6.02356349,3210.1,3210.0,0.005]
[1720953832102,4.07962882,3210.1,3210.0,0.005]
[1720953832297,6.02356349,3210.1,3210.0,0.005]
[1720953833298,6.63370972,3210.1,3210.0,0.005]
[1720953834356,3.61014623,3210.1,3210.0,0.005]
[1720953834561,4.68983233,3210.1,3210.0,0.005]
[1720953834789,6.71086857,3210.1,3210.0,0.005]
[1720953835015,4.76773176,3210.1,3210.0,0.005]
[1720953835216,6.71064964,3210.1,3210.0,0.005]
[1720953835494,4.76773176,3210.1,3210.0,0.005]
[1720953836292,6.71064964,3210.1,3210.0,0.005]
[1720953837393,6.71065597,3210.1,3210.0,0.005]
[1720953837609,3.0,3210.1,3210.0,0.005]
[1720953837941,1.07968502,3210.1,3210.0,0.005]
[1720953838261,4.07968502,3210.1,3210.0,0.005]
[1720953840613,3.0,3210.1,3210.0,0.005]
[1720953840815,1.07968736,3210.1,3210.0,0.005]
[1720953841054,4.07968736,3210.1,3210.0,0.005]
[1720953841458,4.40562073,3210.1,3210.0,0.005]
[1720953842432,1.40562073,3210.1,3210.0,0.005]
[1720953842633,4.40562073,3210.1,3210.0,0.005]
[1720953842833,1.40562073,3210.1,3210.0,0.005]
[1720953843060,3.02287958,3210.1,3210.0,0.005]
[1720953843279,6.02287958,3210.1,3210.0,0.005]
[1720953843561,6.02287958,3210.1,3210.0,0.22098]
[1720953843562,2.37597387,3210.1,3210.0,0.22098]
[1720953843787,1.40553934,3210.1,3210.0,0.22098]
[1720953845057,1.40553934,3210.1,3210.0,0.005]
[1720953845226,2.37597387,3210.1,3210.0,0.005]
[1720953846265,2.69937978,3210.1,3210.0,0.005]
[1720953846462,0.32593337,3210.1,3210.0,0.005]
[1720953846662,2.69929015,3210.1,3210.0,0.005]
[1720953847020,1.40544971,3210.1,3210.0,0.005]
[1720953848442,2.69929015,3210.1,3210.0,0.005]
[1720953849150,1.40544971,3210.1,3210.0,0.005]
[1720953849680,2.69929015,3210.1,3210.0,0.005]
[1720953849879,1.61977381,3210.1,3210.0,0.005]
[1720953850100,2.69927931,3210.1,3210.0,0.005]
[1720953851053,1.40543887,3210.1,3210.0,0.005]
[1720953851442,2.69927931,3210.1,3210.0,0.005]
[1720953851973,1.40543887,3210.1,3210.0,0.005]
[1720953852965,2.69927931,3210.1,3210.0,0.005]
[1720953853273,1.40541774,3210.1,3210.0,0.005]
[1720953853952,2.69925818,3210.1,3210.0,0.005]
[1720953854152,2.7010379,3210.1,3210.0,0.005]
[1720953854388,3.02478302,3210.1,3210.0,0.005]
[1720953854857,1.40541774,3210.1,3210.0,0.005]
[1720953855450,3.02478302,3210.1,3210.0,0.005]
[1720953856507,3.0254026,3210.1,3210.0,0.005]
[1720953856853,1.40547057,3210.1,3210.0,0.005]
[1720953857358,1.48336116,3210.1,3210.0,0.005]
[1720953858573,1.40547057,3210.1,3210.0,0.005]
[1720953859582,1.40550468,3210.1,3210.0,0.005]
[1720953860105,1.48339515,3210.1,3210.0,0.005]
[1720953860466,1.40550468,3210.1,3210.0,0.005]
[1720953861411,3.34952541,3210.1,3210.0,0.005]
[1720953862902,3.35159732,3210.1,3210.0,0.005]
[1720953865889,3.68675705,3210.1,3210.0,0.005]
[1720953866067,0.6610931,3210.1,3210.0,0.005]
[1720953866404,0.32593337,3210.1,3210.0,0.005]
[1720953866586,1.48346053,3210.1,3210.0,0.005]
[1720953867305,1.4055647,3210.1,3210.0,0.005]
[1720953869393,1.4054914,3210.1,3210.0,0.005]
[1720953872614,0.32593337,3210.1,3210.0,0.005]
[1720953872805,1.40549571,3210.1,3210.0,0.005]
[1720953873783,1.40549571,3210.1,3210.0,2.1598]
[1720953874079,1.40549571,3210.1,3210.0,2.37578]
[1720953874800,1.40549571,3210.1,3210.0,4.86799]
[1720953874801,2.38006389,3210.1,3210.0,4.86799]
[1720953875145,1.30050059,3210.1,3210.0,4.86799]
[1720953875873,1.30019441,3210.1,3210.0,4.86799]
[1720953876073,1.30018239,3210.1,3210.0,4.86799]
[1720953876482,0.32593337,3210.1,3210.0,4.86799]
[1720953881322,0.32593337,3210.1,3210.0,7.3602]
[1720953881520,0.32593337,3210.1,3210.0,7.9102]
[1720953881918,0.97380886,3210.8,3210.5,2.49181]
[1720953882118,0.97380886,3210.8,3210.6,2.403981]
[1720953882522,0.32595423,3210.7,3210.6,2.403981]
[1720953883025,0.32595423,3210.7,3210.6,4.895721]
[1720953890297,0.32595423,3210.7,3210.5,2.49181]
[1720953890859,0.32595423,3210.7,3210.3,2.1548]
[1720953890860,0.32595423,3210.7,3210.3,4.64674]
[1720953890992,0.32595423,3210.7,3210.4,2.4919]
[1720953894433,2.59295423,3210.7,3210.2,2.49198]
[1720953894725,2.267,3210.6,3210.3,2.49196]
[1720953895750,2.267,3210.6,3210.2,2.49204]
[1720953895948,2.267,3210.6,3210.2,4.02196917]
[1720953896248,2.267,3210.6,3210.3,2.49197]
[1720953897316,2.267,3210.6,3210.2,1.52992917]
[1720953898257,0.32595423,3210.7,3210.2,1.52992917]
[1720953898623,0.32595423,3210.7,3210.2,4.02190917]
[1720953898870,0.32595423,3210.7,3210.3,0.70219092]
[1720953899170,0.32595423,3210.7,3210.3,3.19416092]
[1720953900529,0.32595423,3210.7,3210.5,2.49179]
[1720953902126,3.40171011,3210.6,3210.2,2.49199]
[1720953902349,1.07922765,3210.5,3210.2,2.49199]
[1720953902548,2.3225,3210.6,3210.2,2.49199]
[1720953902879,0.32595423,3210.7,3210.2,1.52992717]
[1720953903159,2.3225,3210.4,3210.0,7.0991017]
[1720953903457,2.05305194,3210.3,3210.0,7.0991017]
[1720953903661,1.07924308,3210.2,3210.0,7.0991017]
[1720953904173,3.40195679,3210.1,3210.0,0.005]
[1720953904627,4.7003686,3210.1,3210.0,0.005]
[1720953904829,4.06642441,3210.1,3210.0,0.005]
[1720953905228,5.36483622,3210.1,3210.0,0.005]
[1720953905666,5.76264194,3210.1,3210.0,0.005]
[1720953906539,4.14431908,3210.1,3210.0,0.005]
[1720953907460,3.06486229,3210.1,3210.0,0.005]
[1720953907767,3.47995851,3210.1,3210.0,0.005]
[1720953910864,3.47995135,3210.1,3210.0,0.005]
[1720953911067,2.40039467,3210.1,3210.0,0.005]
[1720953911271,3.47994599,3210.1,3210.0,0.005]
[1720953912267,4.69708591,3210.1,3210.0,0.005]
[1720953912492,0.97126018,3210.1,3210.0,0.005]
[1720953912635,0.97126018,3210.2,3210.0,0.005]
[1720953913062,2.05071194,3210.1,3210.0,0.005]
[1720953913263,0.97126018,3210.2,3210.0,0.005]
[1720953913675,1.29724488,3210.3,3210.0,0.005]
[1720953914641,0.97126018,3210.2,3210.0,0.005]
[1720953916039,4.80014403,3210.1,3210.0,0.005]
[1720953916287,4.80020583,3210.1,3210.0,0.005]
[1720953916435,3.50510944,3210.1,3210.0,0.005]
[1720953917190,5.12401571,3210.1,3210.0,0.005]
[1720953918742,3.50511258,3210.1,3210.0,0.005]
[1720953918952,4.08382481,3210.1,3210.0,0.005]
[1720953920441,4.08382209,3210.1,3210.0,0.005]
[1720953922572,4.16171584,3210.1,3210.0,0.005]
[1720953923474,5.45675099,3210.1,3210.0,0.005]
[1720953923687,3.08220598,3210.1,3210.0,0.005]
[1720953923898,5.45675213,3210.1,3210.0,0.005]
[1720953926169,4.80014615,3210.1,3210.0,0.005]
[1720953926370,2.37454615,3210.1,3210.0,0.005]
[1720953926680,2.05067613,3210.1,3210.0,0.005]
[1720953926900,1.62102033,3210.3,3210.0,0.005]
[1720953927217,0.97117131,3210.1,3210.0,0.005]
[1720953927411,2.05057599,3210.1,3210.0,0.005]
[1720953930266,2.05074998,3210.1,3210.0,0.005]
[1720953932341,1.07943687,3210.1,3210.0,0.005]
[1720953932540,1.07943687,3210.1,3210.0,0.0609326]
[1720953932716,1.51137296,3210.1,3210.0,0.005]
[1720953933042,2.80645711,3210.1,3210.0,0.0609326]
[1720953933208,2.80645711,3210.1,3210.0,0.005]
[1720953933397,1.72702024,3210.1,3210.0,0.005]
[1720953933588,2.37455944,3210.1,3210.0,0.005]
[1720953933994,1.07947529,3210.1,3210.0,0.005]